[Event "Late-Titled-Tuesday-Blitz-March-26-2024"]
[Site "Chess.com"]
[Date "2024.03.26"]
[Round "4"]
[White "Slovak_fighter2000"]
[Black "carokannlover213"]
[Result "0-1"]
[WhiteElo "2594"]
[BlackElo "2836"]
[TimeControl "180+1"]
[EndTime "14:41:24 PDT"]
[Termination "carokannlover213 won on time"]

1. c4 {[%clk 0:02:59.7]} 1... e6 {[%clk 0:02:58.5]} 2. d4 {[%clk 0:02:58.2]}
2... d5 {[%clk 0:02:59]} 3. Nc3 {[%clk 0:02:58.3]} 3... Nf6 {[%clk 0:02:59]} 4.
Nf3 {[%clk 0:02:57.8]} 4... c6 {[%clk 0:02:55.7]} 5. g3 {[%clk 0:02:56.8]} 5...
dxc4 {[%clk 0:02:53.5]} 6. Bg2 {[%clk 0:02:57.2]} 6... b5 {[%clk 0:02:54]} 7.
O-O {[%clk 0:02:57.3]} 7... Bb7 {[%clk 0:02:54]} 8. e4 {[%clk 0:02:55.3]} 8...
b4 {[%clk 0:02:49.9]} 9. e5 {[%clk 0:02:54.9]} 9... bxc3 {[%clk 0:02:47.1]} 10.
exf6 {[%clk 0:02:55.1]} 10... gxf6 {[%clk 0:02:43.1]} 11. bxc3 {[%clk
0:02:52.4]} 11... c5 {[%clk 0:02:42.7]} 12. Rb1 {[%clk 0:02:42.8]} 12... Be4
{[%clk 0:02:39.8]} 13. Rb2 {[%clk 0:02:33.8]} 13... Nc6 {[%clk 0:02:26.3]} 14.
Re1 {[%clk 0:02:29.5]} 14... Bd5 {[%clk 0:02:07.7]} 15. Be3 {[%clk 0:02:13.5]}
15... cxd4 {[%clk 0:01:56.9]} 16. Nxd4 {[%clk 0:02:12.2]} 16... Bxg2 {[%clk
0:01:37.4]} 17. Kxg2 {[%clk 0:02:07.5]} 17... Qd5+ {[%clk 0:01:28.2]} 18. Kg1
{[%clk 0:01:59]} 18... Nxd4 {[%clk 0:01:13.6]} 19. Bxd4 {[%clk 0:01:56.9]} 19...
Be7 {[%clk 0:01:01.8]} 20. Qa4+ {[%clk 0:01:42.6]} 20... Kf8 {[%clk 0:00:58.8]}
21. Rb5 {[%clk 0:01:30.9]} 21... Qd8 {[%clk 0:00:58.1]} 22. Qxc4 {[%clk
0:01:22.7]} 22... h5 {[%clk 0:00:54.5]} 23. Rb7 {[%clk 0:01:19.6]} 23... h4
{[%clk 0:00:49.7]} 24. Rxe6 {[%clk 0:00:55.7]} 24... fxe6 {[%clk 0:00:17.7]} 25.
Qxe6 {[%clk 0:00:56.6]} 25... Qd6 {[%clk 0:00:11.1]} 26. Qe4 {[%clk 0:00:34.5]}
26... Re8 {[%clk 0:00:10.2]} 27. Rxa7 {[%clk 0:00:28.3]} 27... hxg3 {[%clk
0:00:10.2]} 28. hxg3 {[%clk 0:00:27.9]} 28... Bd8 {[%clk 0:00:10]} 29. Qf5
{[%clk 0:00:17.4]} 29... Re1+ {[%clk 0:00:09.5]} 30. Kg2 {[%clk 0:00:17.7]}
30... Qc6+ {[%clk 0:00:10]} 31. f3 {[%clk 0:00:15.6]} 31... Re2+ {[%clk
0:00:10.2]} 32. Kf1 {[%clk 0:00:07.8]} 32... Re7 {[%clk 0:00:06.5]} 33. Bc5
{[%clk 0:00:06.1]} 33... Qb5+ {[%clk 0:00:06.5]} 34. Kg2 {[%clk 0:00:03]} 34...
Qe2+ {[%clk 0:00:06.9]} 35. Bf2 {[%clk 0:00:02.8]} 35... Rh2+ {[%clk 0:00:07.5]}
36. Kxh2 {[%clk 0:00:03.1]} 36... Qxf2+ {[%clk 0:00:08.1]} 37. Kh3 {[%clk
0:00:03.8]} 37... Qxa7 {[%clk 0:00:08.3]} 38. Qxf6+ {[%clk 0:00:02.3]} 38... Ke8
{[%clk 0:00:08.9]} 39. Qc6+ {[%clk 0:00:02.1]} 39... Qd7+ {[%clk 0:00:08.5]} 40.
Qxd7+ {[%clk 0:00:01.6]} 40... Rxd7 {[%clk 0:00:09.3]} 0-1

[Event "Late-Titled-Tuesday-Blitz-March-26-2024"]
[Site "Chess.com"]
[Date "2024.03.26"]
[Round "4"]
[White "ExtremeLearner"]
[Black "Houdinovic"]
[Result "1-0"]
[WhiteElo "2553"]
[BlackElo "2718"]
[TimeControl "180+1"]
[EndTime "14:41:24 PDT"]
[Termination "ExtremeLearner won by checkmate"]

1. d4 {[%clk 0:03:00.9]} 1... Nf6 {[%clk 0:02:34.9]} 2. c4 {[%clk 0:02:58]} 2...
d6 {[%clk 0:02:35.1]} 3. g3 {[%clk 0:02:56.7]} 3... Nbd7 {[%clk 0:02:32.4]} 4.
Bg2 {[%clk 0:02:56.5]} 4... g6 {[%clk 0:02:32.2]} 5. Nc3 {[%clk 0:02:55.7]} 5...
Bg7 {[%clk 0:02:32.8]} 6. Nf3 {[%clk 0:02:53.2]} 6... O-O {[%clk 0:02:33.3]} 7.
O-O {[%clk 0:02:52.1]} 7... e5 {[%clk 0:02:33.3]} 8. e4 {[%clk 0:02:50.8]} 8...
Re8 {[%clk 0:02:25.9]} 9. h3 {[%clk 0:02:46]} 9... exd4 {[%clk 0:02:22]} 10.
Nxd4 {[%clk 0:02:44.9]} 10... Nc5 {[%clk 0:02:22.6]} 11. Re1 {[%clk 0:02:43.3]}
11... a5 {[%clk 0:02:22.5]} 12. Bf4 {[%clk 0:02:38.8]} 12... Bd7 {[%clk
0:02:02]} 13. Ndb5 {[%clk 0:02:33.7]} 13... Bc6 {[%clk 0:02:00]} 14. Qc2 {[%clk
0:02:10.3]} 14... Nfd7 {[%clk 0:01:40.4]} 15. Rad1 {[%clk 0:02:03]} 15... Ne5
{[%clk 0:01:37.5]} 16. b3 {[%clk 0:01:56]} 16... Qd7 {[%clk 0:01:30.2]} 17. Nd4
{[%clk 0:01:51.4]} 17... Rad8 {[%clk 0:01:17.7]} 18. Bxe5 {[%clk 0:01:22.7]}
18... dxe5 {[%clk 0:00:44.5]} 19. Nxc6 {[%clk 0:00:34.2]} 19... Qxc6 {[%clk
0:00:45.4]} 20. Rd5 {[%clk 0:00:29.3]} 20... Ne6 {[%clk 0:00:36.7]} 21. Ne2
{[%clk 0:00:12.3]} 21... b6 {[%clk 0:00:34.2]} 22. Red1 {[%clk 0:00:09.2]} 22...
Qa8 {[%clk 0:00:34.1]} 23. Qd2 {[%clk 0:00:08.5]} 23... c6 {[%clk 0:00:29.9]}
24. Rxd8 {[%clk 0:00:06.8]} 24... Rxd8 {[%clk 0:00:30.8]} 25. Qc2 {[%clk
0:00:07.4]} 25... Bf8 {[%clk 0:00:24.2]} 26. Kh2 {[%clk 0:00:05.2]} 26... Bc5
{[%clk 0:00:23.5]} 27. Rxd8+ {[%clk 0:00:05.2]} 27... Qxd8 {[%clk 0:00:23.2]}
28. Ng1 {[%clk 0:00:05.5]} 28... Qd4 {[%clk 0:00:22.1]} 29. Nf3 {[%clk
0:00:05.4]} 29... Qd6 {[%clk 0:00:19.1]} 30. Qb2 {[%clk 0:00:05.6]} 30... f6
{[%clk 0:00:18.6]} 31. h4 {[%clk 0:00:03.7]} 31... Kg7 {[%clk 0:00:17.9]} 32.
Bh3 {[%clk 0:00:04]} 32... Nc7 {[%clk 0:00:08.1]} 33. h5 {[%clk 0:00:04.5]}
33... Qd3 {[%clk 0:00:07.9]} 34. h6+ {[%clk 0:00:03.7]} 34... Kxh6 {[%clk
0:00:07.9]} 35. Kg2 {[%clk 0:00:04.1]} 35... Qxe4 {[%clk 0:00:08]} 36. Qd2+
{[%clk 0:00:02.7]} 36... g5 {[%clk 0:00:08.1]} 37. Qd7 {[%clk 0:00:03.4]} 37...
g4 {[%clk 0:00:03.2]} 38. Bxg4 {[%clk 0:00:03.4]} 38... Qe2 {[%clk 0:00:03]} 39.
Bf5 {[%clk 0:00:04.3]} 39... Qxf2+ {[%clk 0:00:03.2]} 40. Kh3 {[%clk 0:00:05]}
40... Qf1+ {[%clk 0:00:03.5]} 41. Kg4 {[%clk 0:00:05.3]} 41... Qxf3+ {[%clk
0:00:01.2]} 42. Kxf3 {[%clk 0:00:05.9]} 42... e4+ {[%clk 0:00:01.9]} 43. Kg4
{[%clk 0:00:06.4]} 43... e3 {[%clk 0:00:02]} 44. Qxh7# {[%clk 0:00:07]} 1-0

[Event "Late-Titled-Tuesday-Blitz-March-26-2024"]
[Site "Chess.com"]
[Date "2024.03.26"]
[Round "4"]
[White "Hikaru"]
[Black "Genghis_K"]
[Result "1-0"]
[WhiteElo "3279"]
[BlackElo "2928"]
[TimeControl "180+1"]
[EndTime "14:41:27 PDT"]
[Termination "Hikaru won on time"]

1. Nf3 {[%clk 0:03:00.9]} 1... Nf6 {[%clk 0:02:39]} 2. b3 {[%clk 0:03:00.8]}
2... g6 {[%clk 0:02:36.7]} 3. d4 {[%clk 0:03:00.3]} 3... Bg7 {[%clk 0:02:36.8]}
4. Bb2 {[%clk 0:03:00.9]} 4... O-O {[%clk 0:02:37.3]} 5. e3 {[%clk 0:03:01.4]}
5... d6 {[%clk 0:02:35.4]} 6. Be2 {[%clk 0:03:01.3]} 6... Nc6 {[%clk 0:02:36]}
7. O-O {[%clk 0:02:59.9]} 7... Bf5 {[%clk 0:02:36.6]} 8. c4 {[%clk 0:03:00]}
8... e5 {[%clk 0:02:36.2]} 9. Nc3 {[%clk 0:02:58.3]} 9... exd4 {[%clk
0:02:31.8]} 10. exd4 {[%clk 0:02:58.1]} 10... Re8 {[%clk 0:02:31.3]} 11. d5
{[%clk 0:02:56.8]} 11... Ne7 {[%clk 0:02:27.6]} 12. h3 {[%clk 0:02:49.5]} 12...
a6 {[%clk 0:02:20.9]} 13. Re1 {[%clk 0:02:43.9]} 13... Bd7 {[%clk 0:02:19]} 14.
Bd3 {[%clk 0:02:42.7]} 14... Bf5 {[%clk 0:02:14.3]} 15. Nd4 {[%clk 0:02:35.8]}
15... Bxd3 {[%clk 0:02:11.3]} 16. Qxd3 {[%clk 0:02:36.7]} 16... Qd7 {[%clk
0:02:11.5]} 17. Re3 {[%clk 0:02:31.8]} 17... Nh5 {[%clk 0:02:04.8]} 18. Rae1
{[%clk 0:02:30.3]} 18... Bxd4 {[%clk 0:01:49.9]} 19. Qxd4 {[%clk 0:02:31.2]}
19... Nf5 {[%clk 0:01:50.2]} 20. Rxe8+ {[%clk 0:02:30.8]} 20... Rxe8 {[%clk
0:01:50.9]} 21. Qd2 {[%clk 0:02:14.6]} 21... Rxe1+ {[%clk 0:01:47.3]} 22. Qxe1
{[%clk 0:02:14.6]} 22... Nf6 {[%clk 0:01:32]} 23. Ne2 {[%clk 0:01:57.9]} 23...
Ne8 {[%clk 0:01:06]} 24. g4 {[%clk 0:01:48.1]} 24... Nfg7 {[%clk 0:01:02.4]} 25.
Nf4 {[%clk 0:01:19]} 25... Kf8 {[%clk 0:01:01.7]} 26. f3 {[%clk 0:01:11.8]}
26... Qe7 {[%clk 0:00:59.7]} 27. Qc3 {[%clk 0:01:06.6]} 27... Qg5 {[%clk
0:00:51.3]} 28. Qd2 {[%clk 0:01:00]} 28... Qh4 {[%clk 0:00:47.7]} 29. Kg2 {[%clk
0:00:58.6]} 29... h5 {[%clk 0:00:47.9]} 30. Bd4 {[%clk 0:00:47.7]} 30... hxg4
{[%clk 0:00:47.9]} 31. fxg4 {[%clk 0:00:45.6]} 31... Nf6 {[%clk 0:00:37.9]} 32.
Bf2 {[%clk 0:00:37.4]} 32... Ne4 {[%clk 0:00:25.6]} 33. Nxg6+ {[%clk 0:00:36.1]}
33... fxg6 {[%clk 0:00:16.2]} 34. Qf4+ {[%clk 0:00:36.2]} 34... Qf6 {[%clk
0:00:05.5]} 35. Qxe4 {[%clk 0:00:36.5]} 35... Kf7 {[%clk 0:00:05.9]} 36. Bd4
{[%clk 0:00:27.6]} 36... Qg5 {[%clk 0:00:06.2]} 37. Be3 {[%clk 0:00:19.9]} 37...
Qf6 {[%clk 0:00:06.3]} 38. Qf4 {[%clk 0:00:20.3]} 38... Qxf4 {[%clk 0:00:05.7]}
39. Bxf4 {[%clk 0:00:21.2]} 39... Ne8 {[%clk 0:00:05.1]} 40. Bg5 {[%clk
0:00:19.8]} 40... c6 {[%clk 0:00:03.7]} 41. Kf3 {[%clk 0:00:20.2]} 41... cxd5
{[%clk 0:00:03.6]} 42. cxd5 {[%clk 0:00:21.1]} 42... Nc7 {[%clk 0:00:04.4]} 43.
Ke4 {[%clk 0:00:21.8]} 43... Nb5 {[%clk 0:00:05.2]} 44. Bd2 {[%clk 0:00:22.4]}
44... Nc7 {[%clk 0:00:04.4]} 45. h4 {[%clk 0:00:21.3]} 45... Ne8 {[%clk
0:00:04.6]} 46. Bc3 {[%clk 0:00:21.6]} 46... Nc7 {[%clk 0:00:05.2]} 47. a4
{[%clk 0:00:21.6]} 47... b5 {[%clk 0:00:05.3]} 48. Bb2 {[%clk 0:00:19]} 48...
bxa4 {[%clk 0:00:02.7]} 49. bxa4 {[%clk 0:00:19.9]} 49... Na8 {[%clk 0:00:03.5]}
50. Bd4 {[%clk 0:00:19.8]} 50... Nc7 {[%clk 0:00:03.7]} 51. Bb6 {[%clk
0:00:20.1]} 51... Ne8 {[%clk 0:00:03.6]} 52. Bd8 {[%clk 0:00:20.6]} 52... Kg7
{[%clk 0:00:03.3]} 53. Kd4 {[%clk 0:00:20.3]} 1-0

[Event "Late-Titled-Tuesday-Blitz-March-26-2024"]
[Site "Chess.com"]
[Date "2024.03.26"]
[Round "4"]
[White "baki83"]
[Black "SaqoChess_Twitch"]
[Result "1-0"]
[WhiteElo "2902"]
[BlackElo "2656"]
[TimeControl "180+1"]
[EndTime "14:41:28 PDT"]
[Termination "baki83 won by resignation"]

1. e4 {[%clk 0:03:00.9]} 1... c5 {[%clk 0:03:00.1]} 2. Nf3 {[%clk 0:02:59.5]}
2... d6 {[%clk 0:03:00.7]} 3. Bb5+ {[%clk 0:02:58.8]} 3... Bd7 {[%clk
0:03:00.6]} 4. Bxd7+ {[%clk 0:02:57.9]} 4... Qxd7 {[%clk 0:03:01.5]} 5. c4
{[%clk 0:02:56]} 5... Nc6 {[%clk 0:03:01.6]} 6. O-O {[%clk 0:02:55.1]} 6... Nf6
{[%clk 0:03:01.6]} 7. Nc3 {[%clk 0:02:55.1]} 7... e6 {[%clk 0:02:57.2]} 8. d4
{[%clk 0:02:55]} 8... cxd4 {[%clk 0:02:57.5]} 9. Nxd4 {[%clk 0:02:55.3]} 9...
Be7 {[%clk 0:02:58.2]} 10. Be3 {[%clk 0:02:53.7]} 10... O-O {[%clk 0:02:58.6]}
11. h3 {[%clk 0:02:46]} 11... Nxd4 {[%clk 0:02:57.9]} 12. Qxd4 {[%clk
0:02:44.3]} 12... Qc6 {[%clk 0:02:57.6]} 13. Rfd1 {[%clk 0:02:41.9]} 13... a6
{[%clk 0:02:49.7]} 14. Rac1 {[%clk 0:02:40.8]} 14... Rac8 {[%clk 0:02:42.7]} 15.
b3 {[%clk 0:02:40.6]} 15... Rfd8 {[%clk 0:02:25.9]} 16. a4 {[%clk 0:02:33.4]}
16... Rd7 {[%clk 0:02:10.9]} 17. Nd5 {[%clk 0:02:24.3]} 17... Bd8 {[%clk
0:01:58.5]} 18. e5 {[%clk 0:02:13.1]} 18... Ne8 {[%clk 0:01:48]} 19. Nb4 {[%clk
0:01:42.9]} 19... Qc7 {[%clk 0:01:39.6]} 20. c5 {[%clk 0:01:19]} 20... d5 {[%clk
0:01:28.2]} 21. c6 {[%clk 0:01:19.1]} 21... bxc6 {[%clk 0:01:28.3]} 22. Nxc6
{[%clk 0:00:58.2]} 22... Qb7 {[%clk 0:01:22]} 23. Nxd8 {[%clk 0:00:31.9]} 23...
Rdxd8 {[%clk 0:01:20.4]} 24. Qb6 {[%clk 0:00:31.8]} 24... Rb8 {[%clk 0:01:01.7]}
25. Rc6 {[%clk 0:00:24.6]} 25... Qxb6 {[%clk 0:00:55]} 26. Bxb6 {[%clk
0:00:24.2]} 26... Rd7 {[%clk 0:00:54.7]} 27. a5 {[%clk 0:00:24]} 27... g6 {[%clk
0:00:53]} 28. b4 {[%clk 0:00:24.3]} 28... h5 {[%clk 0:00:52.8]} 29. Bc5 {[%clk
0:00:22.3]} 29... Rc7 {[%clk 0:00:46.5]} 30. Rxa6 {[%clk 0:00:20]} 30... Rcc8
{[%clk 0:00:39.6]} 31. Rb6 {[%clk 0:00:19.7]} 31... Ra8 {[%clk 0:00:37]} 32. Ra1
{[%clk 0:00:15.6]} 32... Nc7 {[%clk 0:00:37.5]} 33. a6 {[%clk 0:00:15.9]} 33...
d4 {[%clk 0:00:37.9]} 34. Bxd4 {[%clk 0:00:14.5]} 34... Nd5 {[%clk 0:00:38.5]}
35. Rb7 {[%clk 0:00:14.4]} 35... Nf4 {[%clk 0:00:35.9]} 36. Bc5 {[%clk
0:00:14.4]} 36... Nd3 {[%clk 0:00:34.1]} 37. a7 {[%clk 0:00:14.2]} 37... Nxc5
{[%clk 0:00:33.8]} 38. bxc5 {[%clk 0:00:14.3]} 38... Kf8 {[%clk 0:00:27.3]} 39.
c6 {[%clk 0:00:13.7]} 39... Ke8 {[%clk 0:00:27.9]} 40. Ra6 {[%clk 0:00:13.3]}
40... Rd8 {[%clk 0:00:25.8]} 41. Kh2 {[%clk 0:00:12.6]} 41... Rdc8 {[%clk
0:00:25.5]} 42. h4 {[%clk 0:00:12.1]} 42... Rd8 {[%clk 0:00:24.3]} 43. f3 {[%clk
0:00:11.1]} 43... Kf8 {[%clk 0:00:23.9]} 44. Kg3 {[%clk 0:00:11.2]} 44... Kg7
{[%clk 0:00:23.3]} 45. c7 {[%clk 0:00:10.8]} 45... Rdc8 {[%clk 0:00:23]} 46. Rb8
{[%clk 0:00:11]} 46... f5 {[%clk 0:00:17.2]} 47. Rxc8 {[%clk 0:00:10.4]} 47...
Rxc8 {[%clk 0:00:17.7]} 48. a8=Q {[%clk 0:00:10.8]} 48... f4+ {[%clk 0:00:18.4]}
49. Kh2 {[%clk 0:00:10.4]} 49... Rxc7 {[%clk 0:00:15.4]} 50. Ra7 {[%clk
0:00:10.2]} 50... Rxa7 {[%clk 0:00:14.3]} 51. Qxa7+ {[%clk 0:00:10.3]} 51... Kh6
{[%clk 0:00:15.2]} 52. Qf7 {[%clk 0:00:10.1]} 52... g5 {[%clk 0:00:16.1]} 53.
Qxe6+ {[%clk 0:00:09.8]} 53... Kg7 {[%clk 0:00:16.1]} 54. hxg5 {[%clk
0:00:09.9]} 54... h4 {[%clk 0:00:16.4]} 55. Qf6+ {[%clk 0:00:10.3]} 1-0

[Event "Late-Titled-Tuesday-Blitz-March-26-2024"]
[Site "Chess.com"]
[Date "2024.03.26"]
[Round "4"]
[White "rhwr"]
[Black "gxbg2000"]
[Result "1-0"]
[WhiteElo "2295"]
[BlackElo "2015"]
[TimeControl "180+1"]
[EndTime "14:41:29 PDT"]
[Termination "rhwr won by resignation"]

1. e4 {[%clk 0:03:00]} 1... e5 {[%clk 0:02:56.2]} 2. Nf3 {[%clk 0:02:59.4]} 2...
Nc6 {[%clk 0:02:54.3]} 3. Bb5 {[%clk 0:02:59]} 3... d6 {[%clk 0:02:52.3]} 4. O-O
{[%clk 0:02:57]} 4... Nf6 {[%clk 0:02:51.6]} 5. Re1 {[%clk 0:02:55.7]} 5... Be7
{[%clk 0:02:51.2]} 6. c3 {[%clk 0:02:53.7]} 6... O-O {[%clk 0:02:50.6]} 7. d4
{[%clk 0:02:52.6]} 7... Bg4 {[%clk 0:02:44.8]} 8. d5 {[%clk 0:02:35.2]} 8... Nb8
{[%clk 0:02:42.8]} 9. h3 {[%clk 0:02:30.9]} 9... Bh5 {[%clk 0:02:39]} 10. Nbd2
{[%clk 0:02:29.5]} 10... h6 {[%clk 0:02:38.6]} 11. Nf1 {[%clk 0:02:28.7]} 11...
Bg6 {[%clk 0:02:37]} 12. Ng3 {[%clk 0:02:28]} 12... Nbd7 {[%clk 0:02:33.7]} 13.
Bd2 {[%clk 0:02:10.8]} 13... Rc8 {[%clk 0:02:32.4]} 14. b4 {[%clk 0:02:06.3]}
14... c6 {[%clk 0:02:32.3]} 15. dxc6 {[%clk 0:02:05.3]} 15... bxc6 {[%clk
0:02:32.5]} 16. Ba6 {[%clk 0:02:04.4]} 16... Rb8 {[%clk 0:02:27.6]} 17. Bd3
{[%clk 0:01:55.9]} 17... d5 {[%clk 0:02:23.7]} 18. Qc2 {[%clk 0:01:46.7]} 18...
dxe4 {[%clk 0:02:21.5]} 19. Nxe4 {[%clk 0:01:46]} 19... Nxe4 {[%clk 0:02:21.5]}
20. Bxe4 {[%clk 0:01:46]} 20... Bxe4 {[%clk 0:02:21.3]} 21. Qxe4 {[%clk
0:01:45.7]} 21... Qc7 {[%clk 0:02:19.6]} 22. Nxe5 {[%clk 0:01:44.4]} 22... Nxe5
{[%clk 0:02:18.6]} 23. Qxe5 {[%clk 0:01:44.8]} 23... Bd6 {[%clk 0:02:18.4]} 24.
Qh5 {[%clk 0:01:25.2]} 24... Rbe8 {[%clk 0:02:15]} 25. Re2 {[%clk 0:01:13.1]}
25... Rxe2 {[%clk 0:02:14.1]} 26. Qxe2 {[%clk 0:01:12.6]} 26... Be5 {[%clk
0:02:14]} 27. Re1 {[%clk 0:01:11.3]} 27... Bf6 {[%clk 0:02:14]} 28. Qf3 {[%clk
0:01:09.5]} 28... Kh7 {[%clk 0:02:06.3]} 29. Qf5+ {[%clk 0:01:05.9]} 29... Kg8
{[%clk 0:02:00.8]} 30. Bf4 {[%clk 0:00:50.6]} 30... Qc8 {[%clk 0:01:42.2]} 31.
Qxc8 {[%clk 0:00:46.1]} 31... Rxc8 {[%clk 0:01:41.2]} 32. Re3 {[%clk 0:00:46.5]}
32... Rd8 {[%clk 0:01:39.9]} 33. Kf1 {[%clk 0:00:28]} 33... Rd1+ {[%clk
0:01:30.3]} 34. Ke2 {[%clk 0:00:27.4]} 34... Ra1 {[%clk 0:01:29.9]} 35. Kd3
{[%clk 0:00:24.2]} 35... Rxa2 {[%clk 0:01:29.8]} 36. Bg3 {[%clk 0:00:24.5]}
36... a5 {[%clk 0:01:25]} 37. bxa5 {[%clk 0:00:23.9]} 37... Rxa5 {[%clk
0:01:24.9]} 38. Re8+ {[%clk 0:00:22.6]} 38... Kh7 {[%clk 0:01:24.2]} 39. Rc8
{[%clk 0:00:21.5]} 39... Rc5 {[%clk 0:01:23.7]} 40. c4 {[%clk 0:00:21.3]} 40...
Kg6 {[%clk 0:01:19.9]} 41. Bd6 {[%clk 0:00:20.1]} 41... Rf5 {[%clk 0:01:17.5]}
42. f3 {[%clk 0:00:17]} 42... Rg5 {[%clk 0:01:10.7]} 43. g4 {[%clk 0:00:16.5]}
43... h5 {[%clk 0:01:07.6]} 44. f4 {[%clk 0:00:11.9]} 44... Ra5 {[%clk
0:01:06.5]} 45. g5 {[%clk 0:00:12.4]} 45... Ba1 {[%clk 0:00:55]} 46. Rxc6 {[%clk
0:00:12.2]} 46... Kf5 {[%clk 0:00:53.2]} 47. Rc5+ {[%clk 0:00:11.7]} 47... Rxc5
{[%clk 0:00:52.1]} 48. Bxc5 {[%clk 0:00:12]} 48... Kxf4 {[%clk 0:00:51.1]} 49.
Bd4 {[%clk 0:00:12.1]} 49... Kxg5 {[%clk 0:00:49.9]} 50. Bxa1 {[%clk 0:00:11.7]}
50... Kf5 {[%clk 0:00:48.7]} 51. Kd4 {[%clk 0:00:11.3]} 51... g5 {[%clk
0:00:48.4]} 52. Kd5 {[%clk 0:00:10.3]} 52... g4 {[%clk 0:00:48.1]} 53. hxg4+
{[%clk 0:00:10.5]} 53... Kxg4 {[%clk 0:00:43.2]} 54. c5 {[%clk 0:00:10.7]} 54...
h4 {[%clk 0:00:43.1]} 55. c6 {[%clk 0:00:10.7]} 55... h3 {[%clk 0:00:43.6]} 56.
Be5 {[%clk 0:00:11.2]} 56... f5 {[%clk 0:00:41.7]} 57. Bh2 {[%clk 0:00:10.7]}
57... Kf3 {[%clk 0:00:41.5]} 58. c7 {[%clk 0:00:11]} 58... Kg2 {[%clk
0:00:41.6]} 59. Bf4 {[%clk 0:00:11.1]} 59... Kf3 {[%clk 0:00:41.4]} 60. Be5
{[%clk 0:00:11.2]} 60... f4 {[%clk 0:00:41.3]} 61. Bxf4 {[%clk 0:00:11.5]} 61...
h2 {[%clk 0:00:42.2]} 62. Bxh2 {[%clk 0:00:10.9]} 1-0

[Event "Late-Titled-Tuesday-Blitz-March-26-2024"]
[Site "Chess.com"]
[Date "2024.03.26"]
[Round "4"]
[White "Karttunen"]
[Black "banane_verte"]
[Result "1-0"]
[WhiteElo "2716"]
[BlackElo "2534"]
[TimeControl "180+1"]
[EndTime "14:41:32 PDT"]
[Termination "Karttunen won on time"]

1. d4 {[%clk 0:03:00.9]} 1... Nf6 {[%clk 0:02:59.5]} 2. c4 {[%clk 0:03:01.3]}
2... e6 {[%clk 0:02:59.6]} 3. Nc3 {[%clk 0:03:00.9]} 3... d5 {[%clk 0:02:58.1]}
4. Nf3 {[%clk 0:02:59.6]} 4... c6 {[%clk 0:02:57.8]} 5. e3 {[%clk 0:02:56.7]}
5... Nbd7 {[%clk 0:02:57.7]} 6. Qc2 {[%clk 0:02:53]} 6... Bd6 {[%clk 0:02:57.9]}
7. Bd3 {[%clk 0:02:51.9]} 7... O-O {[%clk 0:02:57.1]} 8. O-O {[%clk 0:02:51.3]}
8... dxc4 {[%clk 0:02:57.4]} 9. Bxc4 {[%clk 0:02:51.2]} 9... b5 {[%clk
0:02:57.9]} 10. Bd3 {[%clk 0:02:51.2]} 10... Bb7 {[%clk 0:02:55.1]} 11. e4
{[%clk 0:02:49.6]} 11... e5 {[%clk 0:02:54.9]} 12. h3 {[%clk 0:02:49.2]} 12...
exd4 {[%clk 0:02:37.6]} 13. Nxd4 {[%clk 0:02:47.1]} 13... Nc5 {[%clk 0:02:38]}
14. Rd1 {[%clk 0:02:32.1]} 14... Nxd3 {[%clk 0:02:27.6]} 15. Rxd3 {[%clk
0:02:27.6]} 15... Qb6 {[%clk 0:02:26.5]} 16. Nf5 {[%clk 0:02:21]} 16... Be5
{[%clk 0:02:26.9]} 17. Be3 {[%clk 0:02:18.2]} 17... c5 {[%clk 0:02:14.2]} 18. f4
{[%clk 0:01:51.4]} 18... Bxc3 {[%clk 0:02:08.7]} 19. Qxc3 {[%clk 0:01:51.3]}
19... Bxe4 {[%clk 0:02:04]} 20. Rd6 {[%clk 0:01:49.2]} 20... Bxf5 {[%clk
0:01:56.3]} 21. Rxb6 {[%clk 0:01:46.8]} 21... axb6 {[%clk 0:01:57.2]} 22. Qe5
{[%clk 0:01:24.2]} 22... Be6 {[%clk 0:01:47.2]} 23. f5 {[%clk 0:01:20.1]} 23...
Bxa2 {[%clk 0:01:39.9]} 24. Bh6 {[%clk 0:01:13.2]} 24... Rfe8 {[%clk 0:00:55.2]}
25. Qg3 {[%clk 0:01:12.3]} 25... g6 {[%clk 0:00:55.6]} 26. Qd6 {[%clk
0:01:02.9]} 26... Ne4 {[%clk 0:00:50]} 27. Qxb6 {[%clk 0:00:50.5]} 27... Bc4
{[%clk 0:00:50]} 28. Re1 {[%clk 0:00:48.1]} 28... Ng3 {[%clk 0:00:28.5]} 29.
Rxe8+ {[%clk 0:00:40]} 29... Rxe8 {[%clk 0:00:29.4]} 30. f6 {[%clk 0:00:23.4]}
30... Nf5 {[%clk 0:00:29.6]} 31. Bf4 {[%clk 0:00:22.1]} 31... h5 {[%clk
0:00:26.8]} 32. Qxc5 {[%clk 0:00:21.9]} 32... Re1+ {[%clk 0:00:24.3]} 33. Kh2
{[%clk 0:00:21.4]} 33... Re2 {[%clk 0:00:23.7]} 34. Qc8+ {[%clk 0:00:19.7]}
34... Kh7 {[%clk 0:00:23.7]} 35. Qd7 {[%clk 0:00:13.8]} 35... Rxb2 {[%clk
0:00:19.5]} 36. Bg5 {[%clk 0:00:12.8]} 36... h4 {[%clk 0:00:12.1]} 37. Kg1
{[%clk 0:00:10.2]} 37... Re2 {[%clk 0:00:11]} 38. Qc7 {[%clk 0:00:06.7]} 38...
Bd5 {[%clk 0:00:08.2]} 39. Qf4 {[%clk 0:00:05.3]} 39... Rxg2+ {[%clk 0:00:07.7]}
40. Kf1 {[%clk 0:00:05.5]} 40... Ng3+ {[%clk 0:00:05]} 41. Ke1 {[%clk
0:00:05.4]} 41... Rg1+ {[%clk 0:00:02.4]} 42. Kd2 {[%clk 0:00:05.3]} 42... Rg2+
{[%clk 0:00:03.3]} 43. Kd1 {[%clk 0:00:04.1]} 43... Rg1+ {[%clk 0:00:02.2]} 44.
Kd2 {[%clk 0:00:03.9]} 44... Rg2+ {[%clk 0:00:03.1]} 45. Ke1 {[%clk 0:00:03.8]}
45... Re2+ {[%clk 0:00:02.6]} 46. Kd1 {[%clk 0:00:04]} 46... Re4 {[%clk
0:00:03.5]} 47. Qf2 {[%clk 0:00:02.6]} 47... Re2 {[%clk 0:00:02.5]} 48. Qd4
{[%clk 0:00:02]} 1-0